[Event "Early-Titled-Tuesday-Blitz-October-03-2023"]
[Site "Chess.com"]
[Date "2023.10.03"]
[Round "10"]
[White "LuisFSiles"]
[Black "ChainedDowntohell"]
[Result "0-1"]
[WhiteElo "2274"]
[BlackElo "2420"]
[TimeControl "180+1"]
[EndTime "9:56:35 PDT"]
[Termination "ChainedDowntohell won on time"]

1. d4 {[%clk 0:03:00.9]} 1... Nf6 {[%clk 0:02:58]} 2. c4 {[%clk 0:03:00]} 2...
g6 {[%clk 0:02:54]} 3. Nc3 {[%clk 0:02:59.2]} 3... d5 {[%clk 0:02:54.3]} 4. cxd5
{[%clk 0:02:57.9]} 4... Nxd5 {[%clk 0:02:55.2]} 5. Bd2 {[%clk 0:02:57.6]} 5...
c5 {[%clk 0:02:54.1]} 6. dxc5 {[%clk 0:02:55.3]} 6... Bg7 {[%clk 0:02:50]} 7. e4
{[%clk 0:02:41.8]} 7... Nb4 {[%clk 0:02:42.9]} 8. Bb5+ {[%clk 0:02:12.3]} 8...
N8c6 {[%clk 0:02:42]} 9. Qb3 {[%clk 0:01:58.5]} 9... O-O {[%clk 0:02:32.6]} 10.
Rd1 {[%clk 0:01:47.1]} 10... Nd4 {[%clk 0:02:26.8]} 11. Qa4 {[%clk 0:01:25.1]}
11... a6 {[%clk 0:02:20.8]} 12. Be3 {[%clk 0:01:20]} 12... Nbc2+ {[%clk
0:02:03.5]} 13. Kf1 {[%clk 0:01:17.2]} 13... Bg4 {[%clk 0:01:56.2]} 14. Be2
{[%clk 0:01:08.7]} 14... Bd7 {[%clk 0:01:30.8]} 15. Qc4 {[%clk 0:00:57.6]} 15...
Nxe3+ {[%clk 0:01:20.2]} 16. fxe3 {[%clk 0:00:56.9]} 16... Nxe2 {[%clk
0:01:16.8]} 17. Ngxe2 {[%clk 0:00:52.4]} 17... Rc8 {[%clk 0:01:07.5]} 18. b4
{[%clk 0:00:39.6]} 18... Qe8 {[%clk 0:01:00]} 19. h4 {[%clk 0:00:20.1]} 19... h5
{[%clk 0:00:59.2]} 20. Nf4 {[%clk 0:00:19]} 20... Bg4 {[%clk 0:00:56.9]} 21. Rd2
{[%clk 0:00:15.4]} 21... Rd8 {[%clk 0:00:54.8]} 22. Ncd5 {[%clk 0:00:14.3]}
22... e6 {[%clk 0:00:49.6]} 23. Kf2 {[%clk 0:00:11.8]} 23... exd5 {[%clk
0:00:48.1]} 24. exd5 {[%clk 0:00:12.3]} 24... Qe5 {[%clk 0:00:43.1]} 25. Re1
{[%clk 0:00:10.5]} 25... Rfe8 {[%clk 0:00:35.5]} 26. d6 {[%clk 0:00:10.8]} 26...
Qc3 {[%clk 0:00:27.8]} 27. Rc2 {[%clk 0:00:06.6]} 27... Qxc4 {[%clk 0:00:21]}
28. Rxc4 {[%clk 0:00:06.7]} 28... Bd7 {[%clk 0:00:14.3]} 29. Rcc1 {[%clk
0:00:03.9]} 29... Bc6 {[%clk 0:00:13.4]} 30. Ne2 {[%clk 0:00:01.2]} 30... Re4
{[%clk 0:00:12.7]} 0-1

[Event "Early-Titled-Tuesday-Blitz-October-03-2023"]
[Site "Chess.com"]
[Date "2023.10.03"]
[Round "10"]
[White "Tsyhanchuk_Stanislav"]
[Black "bazar-wokzal"]
[Result "1-0"]
[WhiteElo "2449"]
[BlackElo "2595"]
[TimeControl "180+1"]
[EndTime "9:56:38 PDT"]
[Termination "Tsyhanchuk_Stanislav won by resignation"]

1. e4 {[%clk 0:02:51.7]} 1... Nc6 {[%clk 0:02:59.5]} 2. Nf3 {[%clk 0:02:50.3]}
2... d5 {[%clk 0:02:59.5]} 3. exd5 {[%clk 0:02:44.6]} 3... Qxd5 {[%clk
0:03:00.4]} 4. c4 {[%clk 0:02:44]} 4... Qa5 {[%clk 0:02:59.2]} 5. Nc3 {[%clk
0:02:43]} 5... Bg4 {[%clk 0:02:58.2]} 6. Be2 {[%clk 0:02:40.9]} 6... O-O-O
{[%clk 0:02:57.5]} 7. h3 {[%clk 0:02:39.4]} 7... Bxf3 {[%clk 0:02:53.8]} 8. Bxf3
{[%clk 0:02:40.3]} 8... Nd4 {[%clk 0:02:54.2]} 9. O-O {[%clk 0:02:27.1]} 9...
Nf6 {[%clk 0:02:54]} 10. d3 {[%clk 0:02:25.2]} 10... Qf5 {[%clk 0:02:46.5]} 11.
Be4 {[%clk 0:01:59.2]} 11... Qh5 {[%clk 0:02:40.3]} 12. Qa4 {[%clk 0:01:54.3]}
12... Kb8 {[%clk 0:02:32.4]} 13. Be3 {[%clk 0:01:52.8]} 13... e5 {[%clk
0:02:09.1]} 14. Bxd4 {[%clk 0:01:31.1]} 14... exd4 {[%clk 0:02:05.7]} 15. Qb3
{[%clk 0:01:10.1]} 15... b6 {[%clk 0:01:52.9]} 16. Nd5 {[%clk 0:01:00.3]} 16...
Nxe4 {[%clk 0:01:46.3]} 17. dxe4 {[%clk 0:01:00.2]} 17... Bd6 {[%clk 0:01:40.7]}
18. a4 {[%clk 0:00:54.7]} 18... Qe5 {[%clk 0:01:23.3]} 19. g3 {[%clk 0:00:39.3]}
19... Qxe4 {[%clk 0:01:20.6]} 20. a5 {[%clk 0:00:37]} 20... Bc5 {[%clk
0:01:01.8]} 21. axb6 {[%clk 0:00:18.5]} 21... cxb6 {[%clk 0:01:00.5]} 22. Qa4
{[%clk 0:00:18.2]} 22... a5 {[%clk 0:00:37.2]} 23. Qb5 {[%clk 0:00:18.5]} 23...
Rxd5 {[%clk 0:00:30.1]} 24. cxd5 {[%clk 0:00:18.4]} 24... Qxd5 {[%clk
0:00:27.4]} 25. Rxa5 {[%clk 0:00:18.2]} 25... d3 {[%clk 0:00:22.8]} 26. b4
{[%clk 0:00:17]} 26... Qb7 {[%clk 0:00:14.5]} 27. Ra3 {[%clk 0:00:07]} 27... Be7
{[%clk 0:00:09.6]} 28. Rxd3 {[%clk 0:00:04.9]} 28... Bf6 {[%clk 0:00:09.6]} 29.
Rd7 {[%clk 0:00:04.7]} 1-0

[Event "Early-Titled-Tuesday-Blitz-October-03-2023"]
[Site "Chess.com"]
[Date "2023.10.03"]
[Round "10"]
[White "vladgoncharov"]
[Black "Rozhkov_V"]
[Result "1-0"]
[WhiteElo "2520"]
[BlackElo "2434"]
[TimeControl "180+1"]
[EndTime "9:56:40 PDT"]
[Termination "vladgoncharov won on time"]

1. d4 {[%clk 0:03:00.9]} 1... d5 {[%clk 0:03:00.2]} 2. c4 {[%clk 0:03:00.4]}
2... dxc4 {[%clk 0:03:01.1]} 3. Nf3 {[%clk 0:02:59.4]} 3... Nf6 {[%clk
0:03:00.4]} 4. e3 {[%clk 0:02:59.2]} 4... Bg4 {[%clk 0:03:01.1]} 5. Bxc4 {[%clk
0:02:57.2]} 5... e6 {[%clk 0:03:01.7]} 6. h3 {[%clk 0:02:54]} 6... Bh5 {[%clk
0:03:01.4]} 7. Nbd2 {[%clk 0:02:50.9]} 7... Nc6 {[%clk 0:02:58.9]} 8. Qa4 {[%clk
0:02:43.2]} 8... Bd6 {[%clk 0:02:57.9]} 9. Bb5 {[%clk 0:02:41.7]} 9... O-O
{[%clk 0:02:57.1]} 10. Bxc6 {[%clk 0:02:35.5]} 10... bxc6 {[%clk 0:02:58]} 11.
Qxc6 {[%clk 0:02:35.7]} 11... Rb8 {[%clk 0:02:58.6]} 12. O-O {[%clk 0:02:32.6]}
12... Nd5 {[%clk 0:02:40.3]} 13. Qc4 {[%clk 0:02:23.5]} 13... Rb4 {[%clk
0:02:12]} 14. Qc2 {[%clk 0:02:02.5]} 14... Bg6 {[%clk 0:01:59.9]} 15. Qd1 {[%clk
0:02:00]} 15... a5 {[%clk 0:01:54.5]} 16. Re1 {[%clk 0:01:52.8]} 16... f5 {[%clk
0:01:50.9]} 17. a3 {[%clk 0:01:44.9]} 17... Rb8 {[%clk 0:01:49.9]} 18. Nc4
{[%clk 0:01:44]} 18... Bh5 {[%clk 0:01:24.2]} 19. Nxa5 {[%clk 0:01:40.3]} 19...
Qe8 {[%clk 0:01:19.1]} 20. Nc4 {[%clk 0:01:30.6]} 20... g5 {[%clk 0:01:19]} 21.
Qc2 {[%clk 0:01:19.2]} 21... g4 {[%clk 0:01:15.9]} 22. hxg4 {[%clk 0:01:16.2]}
22... fxg4 {[%clk 0:01:13]} 23. Nfe5 {[%clk 0:01:16.4]} 23... Rf6 {[%clk
0:00:42]} 24. g3 {[%clk 0:01:13.4]} 24... Ne7 {[%clk 0:00:19.7]} 25. e4 {[%clk
0:01:12.3]} 25... Ng6 {[%clk 0:00:18.8]} 26. Bg5 {[%clk 0:01:10.3]} 26... Rf8
{[%clk 0:00:16.4]} 27. b4 {[%clk 0:01:08.5]} 27... Ra8 {[%clk 0:00:09.5]} 28.
Qd2 {[%clk 0:00:59.6]} 28... Bxe5 {[%clk 0:00:06.7]} 29. dxe5 {[%clk 0:00:58.4]}
29... Qf7 {[%clk 0:00:04.9]} 30. Bf6 {[%clk 0:00:56.9]} 30... Ne7 {[%clk
0:00:03.2]} 31. Qg5+ {[%clk 0:00:55.2]} 31... Bg6 {[%clk 0:00:01.9]} 32. Qxg4
{[%clk 0:00:41.2]} 32... Nc6 {[%clk 0:00:02.4]} 33. Rad1 {[%clk 0:00:34.2]}
33... h5 {[%clk 0:00:02.3]} 34. Qg5 {[%clk 0:00:34]} 34... Kh7 {[%clk
0:00:02.9]} 35. Kg2 {[%clk 0:00:33.1]} 35... Rg8 {[%clk 0:00:03]} 36. Qf4 {[%clk
0:00:30.5]} 36... Raf8 {[%clk 0:00:01.7]} 37. Rh1 {[%clk 0:00:28.3]} 1-0

[Event "Early-Titled-Tuesday-Blitz-October-03-2023"]
[Site "Chess.com"]
[Date "2023.10.03"]
[Round "10"]
[White "NikolaGry"]
[Black "PeshkaCh"]
[Result "0-1"]
[WhiteElo "2727"]
[BlackElo "2808"]
[TimeControl "180+1"]
[EndTime "9:56:45 PDT"]
[Termination "PeshkaCh won on time"]

1. d4 {[%clk 0:03:00.9]} 1... Nf6 {[%clk 0:02:59.9]} 2. Bg5 {[%clk 0:02:55.2]}
2... d5 {[%clk 0:02:54.2]} 3. Bxf6 {[%clk 0:02:51.5]} 3... gxf6 {[%clk
0:02:55.1]} 4. e3 {[%clk 0:02:51.5]} 4... e6 {[%clk 0:02:52.7]} 5. c4 {[%clk
0:02:51.5]} 5... dxc4 {[%clk 0:02:43.6]} 6. Bxc4 {[%clk 0:02:50.7]} 6... f5
{[%clk 0:02:44]} 7. Nf3 {[%clk 0:02:46.3]} 7... Bg7 {[%clk 0:02:43.2]} 8. Nc3
{[%clk 0:02:42.6]} 8... O-O {[%clk 0:02:42.2]} 9. Qc2 {[%clk 0:02:31]} 9... a6
{[%clk 0:02:32.2]} 10. a4 {[%clk 0:02:17.5]} 10... b6 {[%clk 0:02:32.4]} 11. Rd1
{[%clk 0:02:09.5]} 11... c6 {[%clk 0:02:07]} 12. h3 {[%clk 0:01:52.4]} 12... b5
{[%clk 0:02:06.7]} 13. Be2 {[%clk 0:01:52.1]} 13... Nd7 {[%clk 0:02:06.2]} 14.
g4 {[%clk 0:01:51.2]} 14... Qa5 {[%clk 0:01:48.2]} 15. gxf5 {[%clk 0:01:38.7]}
15... b4 {[%clk 0:01:47.2]} 16. Ne4 {[%clk 0:01:18.1]} 16... Qxf5 {[%clk
0:01:21.5]} 17. Nh4 {[%clk 0:01:05]} 17... Qd5 {[%clk 0:01:01.7]} 18. Bf3 {[%clk
0:00:56.2]} 18... Qa5 {[%clk 0:00:53.6]} 19. b3 {[%clk 0:00:49.7]} 19... Nf6
{[%clk 0:00:41.9]} 20. Rg1 {[%clk 0:00:40.5]} 20... Kh8 {[%clk 0:00:37.6]} 21.
Rg5 {[%clk 0:00:27.1]} 21... Qd8 {[%clk 0:00:23.2]} 22. Nxf6 {[%clk 0:00:22.5]}
22... Qxf6 {[%clk 0:00:24.1]} 23. Rh5 {[%clk 0:00:20.5]} 23... h6 {[%clk
0:00:24.6]} 24. Ke2 {[%clk 0:00:17.5]} 24... a5 {[%clk 0:00:19.3]} 25. Rg1
{[%clk 0:00:06.2]} 25... Ba6+ {[%clk 0:00:19.7]} 26. Ke1 {[%clk 0:00:06.5]}
26... c5 {[%clk 0:00:18.2]} 27. Ng6+ {[%clk 0:00:04.5]} 27... fxg6 {[%clk
0:00:16.5]} 28. Rxg6 {[%clk 0:00:04.4]} 28... Qf7 {[%clk 0:00:08.3]} 29. Bxa8
{[%clk 0:00:02.8]} 29... Rxa8 {[%clk 0:00:06.3]} 30. Qe4 {[%clk 0:00:01.5]}
30... Bb7 {[%clk 0:00:05.8]} 0-1

[Event "Early-Titled-Tuesday-Blitz-October-03-2023"]
[Site "Chess.com"]
[Date "2023.10.03"]
[Round "10"]
[White "Itk04"]
[Black "FairChess_on_YouTube"]
[Result "0-1"]
[WhiteElo "2736"]
[BlackElo "3044"]
[TimeControl "180+1"]
[EndTime "9:56:45 PDT"]
[Termination "FairChess_on_YouTube won by resignation"]

1. d4 {[%clk 0:03:00.9]} 1... g6 {[%clk 0:02:48.6]} 2. Nc3 {[%clk 0:02:58.7]}
2... Bg7 {[%clk 0:02:42.8]} 3. e4 {[%clk 0:02:54.1]} 3... c6 {[%clk 0:02:42.7]}
4. Nf3 {[%clk 0:02:44.3]} 4... d5 {[%clk 0:02:42.7]} 5. h3 {[%clk 0:02:45]} 5...
dxe4 {[%clk 0:02:42.3]} 6. Nxe4 {[%clk 0:02:45.9]} 6... Nf6 {[%clk 0:02:41.5]}
7. Bd3 {[%clk 0:02:40.3]} 7... O-O {[%clk 0:02:40.6]} 8. O-O {[%clk 0:02:40.1]}
8... Nbd7 {[%clk 0:02:40.9]} 9. c3 {[%clk 0:02:38.3]} 9... b6 {[%clk 0:02:36.5]}
10. Qe2 {[%clk 0:02:29.4]} 10... Bb7 {[%clk 0:02:36.3]} 11. Rd1 {[%clk
0:02:29.5]} 11... Qc7 {[%clk 0:02:34.8]} 12. Be3 {[%clk 0:01:40.9]} 12... Nd5
{[%clk 0:02:27.2]} 13. c4 {[%clk 0:01:24.7]} 13... Nxe3 {[%clk 0:02:24]} 14.
Qxe3 {[%clk 0:01:25.6]} 14... c5 {[%clk 0:02:21.7]} 15. dxc5 {[%clk 0:01:15.3]}
15... Nxc5 {[%clk 0:02:20]} 16. Nxc5 {[%clk 0:01:14.4]} 16... Qxc5 {[%clk
0:02:20.4]} 17. Qxc5 {[%clk 0:01:09.5]} 17... bxc5 {[%clk 0:02:21.3]} 18. Rab1
{[%clk 0:01:07.3]} 18... Rfd8 {[%clk 0:02:20.3]} 19. Kf1 {[%clk 0:01:02.9]}
19... Rd6 {[%clk 0:02:13.4]} 20. b3 {[%clk 0:00:35.1]} 20... Ra6 {[%clk
0:02:02.7]} 21. a4 {[%clk 0:00:34.4]} 21... Bxf3 {[%clk 0:01:54.1]} 22. gxf3
{[%clk 0:00:34.5]} 22... Rb8 {[%clk 0:01:52.1]} 23. Bc2 {[%clk 0:00:33.6]} 23...
Bd4 {[%clk 0:01:51.5]} 24. Rd3 {[%clk 0:00:29.2]} 24... e5 {[%clk 0:01:48.5]}
25. Kg2 {[%clk 0:00:22.3]} 25... Rf6 {[%clk 0:01:46.3]} 26. Rd2 {[%clk
0:00:21.5]} 26... Rfb6 {[%clk 0:01:29.2]} 27. Rd3 {[%clk 0:00:06.8]} 27... Kg7
{[%clk 0:01:27.5]} 28. Kf1 {[%clk 0:00:06.7]} 28... Kf6 {[%clk 0:01:26.4]} 29.
Ke2 {[%clk 0:00:07.2]} 29... Kg5 {[%clk 0:01:27]} 30. Rg1+ {[%clk 0:00:07.4]}
30... Kf6 {[%clk 0:01:25.2]} 31. Rg4 {[%clk 0:00:07.2]} 31... h5 {[%clk
0:01:24.7]} 32. Rg1 {[%clk 0:00:06.3]} 32... Re8 {[%clk 0:01:19.9]} 33. Rdd1
{[%clk 0:00:06.6]} 33... Kg7 {[%clk 0:01:15.4]} 34. Rb1 {[%clk 0:00:06.6]} 34...
Kh6 {[%clk 0:01:13.7]} 35. Be4 {[%clk 0:00:06.5]} 35... Reb8 {[%clk 0:01:12.7]}
36. Bd5 {[%clk 0:00:06.4]} 36... f5 {[%clk 0:01:06.6]} 37. h4 {[%clk 0:00:05.1]}
37... Kg7 {[%clk 0:01:01.5]} 38. a5 {[%clk 0:00:02.2]} 38... Rxb3 {[%clk
0:01:01.3]} 39. Rxb3 {[%clk 0:00:03.1]} 39... Rxb3 {[%clk 0:01:01.4]} 40. Be6
{[%clk 0:00:03.7]} 40... Kf6 {[%clk 0:00:59.9]} 41. Bd7 {[%clk 0:00:03.1]} 41...
Rb2+ {[%clk 0:00:59.9]} 42. Kd3 {[%clk 0:00:03.6]} 42... Rxf2 {[%clk 0:00:57.8]}
43. Rg3 {[%clk 0:00:01.9]} 43... Ra2 {[%clk 0:00:45.9]} 44. Be8 {[%clk
0:00:01.5]} 44... e4+ {[%clk 0:00:45.5]} 45. fxe4 {[%clk 0:00:01.5]} 45... Ra3+
{[%clk 0:00:45.9]} 46. Ke2 {[%clk 0:00:02.4]} 0-1

[Event "Early-Titled-Tuesday-Blitz-October-03-2023"]
[Site "Chess.com"]
[Date "2023.10.03"]
[Round "10"]
[White "NovikovaGalina"]
[Black "Gurvich_Vitaly"]
[Result "0-1"]
[WhiteElo "2448"]
[BlackElo "2745"]
[TimeControl "180+1"]
[EndTime "9:56:47 PDT"]
[Termination "Gurvich_Vitaly won on time"]

1. e4 {[%clk 0:03:00.9]} 1... c6 {[%clk 0:02:55.2]} 2. d4 {[%clk 0:03:00.6]}
2... d5 {[%clk 0:02:47.8]} 3. e5 {[%clk 0:03:00.9]} 3... Bf5 {[%clk 0:02:47.4]}
4. Nc3 {[%clk 0:03:00.2]} 4... e6 {[%clk 0:02:47.4]} 5. g4 {[%clk 0:03:00.8]}
5... Bg6 {[%clk 0:02:47.5]} 6. Nge2 {[%clk 0:03:01.5]} 6... c5 {[%clk
0:02:43.1]} 7. h4 {[%clk 0:03:01.2]} 7... h5 {[%clk 0:02:43.2]} 8. Nf4 {[%clk
0:03:01.8]} 8... Bh7 {[%clk 0:02:42.9]} 9. g5 {[%clk 0:03:02.5]} 9... Ne7 {[%clk
0:02:39.4]} 10. Qxh5 {[%clk 0:02:56.9]} 10... Qd7 {[%clk 0:02:09.4]} 11. Nb5
{[%clk 0:02:34.6]} 11... Nf5 {[%clk 0:01:39.5]} 12. Nxe6 {[%clk 0:02:19.3]}
12... Na6 {[%clk 0:01:32.8]} 13. Nxf8 {[%clk 0:02:10.5]} 13... Kxf8 {[%clk
0:01:31]} 14. Be3 {[%clk 0:01:37.5]} 14... Kg8 {[%clk 0:01:27.1]} 15. Qg4 {[%clk
0:01:19.5]} 15... Nb4 {[%clk 0:01:02.2]} 16. O-O-O {[%clk 0:01:19.4]} 16... cxd4
{[%clk 0:00:31]} 17. Nxd4 {[%clk 0:00:55.6]} 17... Rc8 {[%clk 0:00:21.5]} 18.
Bd3 {[%clk 0:00:32.3]} 18... Nxd3+ {[%clk 0:00:10.2]} 19. Rxd3 {[%clk
0:00:33.2]} 19... Qa4 {[%clk 0:00:10.5]} 20. Kb1 {[%clk 0:00:20.8]} 20... Bg6
{[%clk 0:00:08.5]} 21. h5 {[%clk 0:00:20]} 21... Rc7 {[%clk 0:00:05]} 22. Rh3
{[%clk 0:00:10]} 22... Nxd4 {[%clk 0:00:04.6]} 23. b3 {[%clk 0:00:07.5]} 23...
Qc6 {[%clk 0:00:03.6]} 24. c3 {[%clk 0:00:05.8]} 24... Bxd3+ {[%clk 0:00:03.1]}
25. Kb2 {[%clk 0:00:05.6]} 25... Qxc3+ {[%clk 0:00:03.7]} 26. Ka3 {[%clk
0:00:05]} 26... Qa5+ {[%clk 0:00:03.1]} 27. Kb2 {[%clk 0:00:04.8]} 27... Rc2+
{[%clk 0:00:03.8]} 0-1

[Event "Early-Titled-Tuesday-Blitz-October-03-2023"]
[Site "Chess.com"]
[Date "2023.10.03"]
[Round "10"]
[White "ChessicallyInclined"]
[Black "jk13"]
[Result "0-1"]
[WhiteElo "2772"]
[BlackElo "2648"]
[TimeControl "180+1"]
[EndTime "9:56:47 PDT"]
[Termination "jk13 won on time"]

1. e4 {[%clk 0:03:00.9]} 1... e5 {[%clk 0:02:59.6]} 2. Nf3 {[%clk 0:03:00.8]}
2... Nc6 {[%clk 0:03:00.3]} 3. Bb5 {[%clk 0:03:00.4]} 3... a6 {[%clk 0:03:00.7]}
4. Ba4 {[%clk 0:03:00.8]} 4... Nf6 {[%clk 0:03:01.4]} 5. O-O {[%clk 0:03:01.2]}
5... b5 {[%clk 0:03:02.1]} 6. Bb3 {[%clk 0:03:01.5]} 6... Bc5 {[%clk 0:03:03]}
7. c3 {[%clk 0:03:00.3]} 7... d6 {[%clk 0:03:03.5]} 8. a4 {[%clk 0:02:59.7]}
8... Rb8 {[%clk 0:03:03]} 9. d4 {[%clk 0:02:59.5]} 9... Bb6 {[%clk 0:03:03.4]}
10. a5 {[%clk 0:02:56.6]} 10... Ba7 {[%clk 0:03:03.4]} 11. Be3 {[%clk 0:02:56]}
11... Ra8 {[%clk 0:03:03.4]} 12. Re1 {[%clk 0:02:45.7]} 12... O-O {[%clk
0:03:03]} 13. h3 {[%clk 0:02:45.8]} 13... h6 {[%clk 0:03:01.8]} 14. Nbd2 {[%clk
0:02:34.2]} 14... Re8 {[%clk 0:03:01.9]} 15. Bc2 {[%clk 0:02:31.9]} 15... Bb7
{[%clk 0:02:50.5]} 16. d5 {[%clk 0:01:58.5]} 16... Ne7 {[%clk 0:02:50.4]} 17.
Nf1 {[%clk 0:01:56.5]} 17... Ng6 {[%clk 0:02:41]} 18. Bxa7 {[%clk 0:01:52.8]}
18... Rxa7 {[%clk 0:02:41.1]} 19. g3 {[%clk 0:01:49.6]} 19... c6 {[%clk
0:02:25.8]} 20. dxc6 {[%clk 0:01:48.1]} 20... Bxc6 {[%clk 0:02:26.1]} 21. Qd2
{[%clk 0:01:44.4]} 21... Rd7 {[%clk 0:02:24.4]} 22. Qe3 {[%clk 0:01:36.8]} 22...
Qc8 {[%clk 0:02:06.3]} 23. Rad1 {[%clk 0:01:28.6]} 23... Qc7 {[%clk 0:01:57.2]}
24. b4 {[%clk 0:01:23.4]} 24... Ba8 {[%clk 0:01:53.5]} 25. Bb1 {[%clk
0:01:21.2]} 25... d5 {[%clk 0:01:31.8]} 26. N1d2 {[%clk 0:00:47.9]} 26... dxe4
{[%clk 0:01:16.2]} 27. Nxe4 {[%clk 0:00:47.7]} 27... Nxe4 {[%clk 0:01:15.6]} 28.
Rxd7 {[%clk 0:00:45]} 28... Qxd7 {[%clk 0:01:14.8]} 29. Bxe4 {[%clk 0:00:45.3]}
29... Bxe4 {[%clk 0:01:15.1]} 30. Qxe4 {[%clk 0:00:46.2]} 30... Qxh3 {[%clk
0:01:14.8]} 31. Qb7 {[%clk 0:00:41.2]} 31... Qe6 {[%clk 0:00:50.2]} 32. Re3
{[%clk 0:00:30.6]} 32... Qd6 {[%clk 0:00:45.4]} 33. Kg2 {[%clk 0:00:24.4]} 33...
Re6 {[%clk 0:00:32.5]} 34. Qc8+ {[%clk 0:00:19.8]} 34... Kh7 {[%clk 0:00:32.4]}
35. Ne1 {[%clk 0:00:11.3]} 35... Qd5+ {[%clk 0:00:29.7]} 36. Kg1 {[%clk
0:00:10.8]} 36... e4 {[%clk 0:00:27.1]} 37. Qb8 {[%clk 0:00:03.5]} 37... Ne5
{[%clk 0:00:24.4]} 38. Qa7 {[%clk 0:00:03.3]} 38... Ng4 {[%clk 0:00:20.6]} 39.
Re2 {[%clk 0:00:03.4]} 39... Qh5 {[%clk 0:00:20.7]} 40. f3 {[%clk 0:00:01.6]}
40... exf3 {[%clk 0:00:18.5]} 0-1

[Event "Early-Titled-Tuesday-Blitz-October-03-2023"]
[Site "Chess.com"]
[Date "2023.10.03"]
[Round "10"]
[White "fabianvivasz"]
[Black "kritipatel"]
[Result "1-0"]
[WhiteElo "2455"]
[BlackElo "2153"]
[TimeControl "180+1"]
[EndTime "9:56:47 PDT"]
[Termination "fabianvivasz won by checkmate"]

1. e4 {[%clk 0:02:12.8]} 1... e5 {[%clk 0:02:58.5]} 2. Nf3 {[%clk 0:02:12.8]}
2... Nc6 {[%clk 0:02:59.1]} 3. Bc4 {[%clk 0:02:13.4]} 3... Nf6 {[%clk 0:02:59]}
4. d3 {[%clk 0:02:12.5]} 4... Bc5 {[%clk 0:02:59.5]} 5. O-O {[%clk 0:02:12.9]}
5... O-O {[%clk 0:02:57.6]} 6. c3 {[%clk 0:02:13.4]} 6... d6 {[%clk 0:02:57.6]}
7. h3 {[%clk 0:02:07.5]} 7... Ne7 {[%clk 0:02:55.2]} 8. Re1 {[%clk 0:01:54.7]}
8... Ng6 {[%clk 0:02:52.5]} 9. d4 {[%clk 0:01:50.7]} 9... Bb6 {[%clk 0:02:50.1]}
10. Bb3 {[%clk 0:01:48.3]} 10... h6 {[%clk 0:02:37.7]} 11. Na3 {[%clk 0:01:45]}
11... Be6 {[%clk 0:02:34.7]} 12. Nc4 {[%clk 0:01:41.5]} 12... Bxc4 {[%clk
0:02:13.4]} 13. Bxc4 {[%clk 0:01:41.7]} 13... c6 {[%clk 0:02:13.8]} 14. Bb3
{[%clk 0:01:23.1]} 14... Qe7 {[%clk 0:01:55.1]} 15. Be3 {[%clk 0:01:10.8]} 15...
Nxe4 {[%clk 0:01:43.3]} 16. dxe5 {[%clk 0:01:10.8]} 16... d5 {[%clk 0:01:34.6]}
17. Bxb6 {[%clk 0:00:49.2]} 17... axb6 {[%clk 0:01:32.3]} 18. Bc2 {[%clk
0:00:44.4]} 18... Nxe5 {[%clk 0:01:24.6]} 19. Bxe4 {[%clk 0:00:44.7]} 19...
Nxf3+ {[%clk 0:01:21.4]} 20. Bxf3 {[%clk 0:00:44.4]} 20... Qf6 {[%clk
0:01:13.2]} 21. Qd4 {[%clk 0:00:43.8]} 21... Qg6 {[%clk 0:01:11.3]} 22. Re7
{[%clk 0:00:42.3]} 22... Rae8 {[%clk 0:01:09.4]} 23. Rae1 {[%clk 0:00:35.1]}
23... Rd8 {[%clk 0:01:07.2]} 24. Qxb6 {[%clk 0:00:33.8]} 24... Rd6 {[%clk
0:01:01]} 25. Qxb7 {[%clk 0:00:32]} 25... Kh7 {[%clk 0:01:00.4]} 26. a4 {[%clk
0:00:29.7]} 26... Rf6 {[%clk 0:01:00.5]} 27. Kh2 {[%clk 0:00:29.3]} 27... Qg5
{[%clk 0:00:57.7]} 28. Qc7 {[%clk 0:00:28.1]} 28... Qf5 {[%clk 0:00:51.9]} 29.
a5 {[%clk 0:00:26.2]} 29... Rc8 {[%clk 0:00:52.3]} 30. Qe5 {[%clk 0:00:25.1]}
30... Qg6 {[%clk 0:00:52.5]} 31. a6 {[%clk 0:00:24.8]} 31... Rf5 {[%clk
0:00:52.8]} 32. Qg3 {[%clk 0:00:23.4]} 32... Rg5 {[%clk 0:00:52.8]} 33. Qf4
{[%clk 0:00:20.6]} 33... Rf5 {[%clk 0:00:52.9]} 34. Qd4 {[%clk 0:00:18.7]} 34...
c5 {[%clk 0:00:49.3]} 35. Qg4 {[%clk 0:00:16.1]} 35... Qd6+ {[%clk 0:00:43.8]}
36. Kh1 {[%clk 0:00:14.5]} 36... Rf4 {[%clk 0:00:44.4]} 37. Qg3 {[%clk
0:00:14.4]} 37... g5 {[%clk 0:00:36.2]} 38. Rxf7+ {[%clk 0:00:13.8]} 38... Kh8
{[%clk 0:00:31.6]} 39. Rxf4 {[%clk 0:00:13.7]} 39... gxf4 {[%clk 0:00:32.2]} 40.
Qh4 {[%clk 0:00:14.1]} 40... Rg8 {[%clk 0:00:32.3]} 41. a7 {[%clk 0:00:13.6]}
41... Qa6 {[%clk 0:00:31.7]} 42. Re7 {[%clk 0:00:12.7]} 42... Qa1+ {[%clk
0:00:29.8]} 43. Kh2 {[%clk 0:00:12.9]} 43... Qxb2 {[%clk 0:00:30.3]} 44. Qxh6#
{[%clk 0:00:13.1]} 1-0